bitfinex/quotes_SOLUSD_20260310
["timestamp","ask_amount","ask_price","bid_price","bid_amount"]
[1773158754629,11.39354441,87.769,87.741,1.25712582]
[1773158754824,11.39224643,87.779,87.741,1.25712582]
[1773158755125,11.39224643,87.779,87.743,1.25712582]
[1773158755305,1.15727085,87.778,87.743,1.25712582]
[1773158757126,11.392506,87.777,87.745,1.25712582]
[1773158757429,1.15727085,87.776,87.745,1.25712582]
[1773158757849,1.15727085,87.776,87.733,1.13982195]
[1773158758027,1.15727085,87.759,87.711,1.25712582]
[1773158758227,1.15727085,87.759,87.713,1.25712582]
[1773158758535,1.15727085,87.759,87.715,1.25712582]
[1773158758715,1.15727085,87.759,87.717,1.25712582]
[1773158758918,10.69076632,87.75,87.719,1.25712582]
[1773158759118,11.39614126,87.749,87.72,10.69076632]
[1773158759429,11.84803717,87.76,87.721,1.25712582]
[1773158759623,10.69076632,87.76,87.721,1.25712582]
[1773158759932,11.3926358,87.776,87.741,1.25712582]
[1773158760131,10.69076632,87.78,87.743,1.25712582]
[1773158760313,11.39120826,87.787,87.743,1.25712582]
[1773158760517,1.15727085,87.797,87.751,1.25712582]
[1773158760712,1.15727085,87.796,87.761,1.25712582]
[1773158760911,1.15727085,87.779,87.738,1.25712582]
[1773158761126,1.15727085,87.769,87.73,10.69076632]
[1773158761430,1.15727085,87.769,87.683,45.6184365]
[1773158761431,1.15727085,87.749,87.711,11.40103753]
[1773158761629,10.69076632,87.74,87.711,1.25712582]
[1773158761830,1.15727085,87.739,87.701,11.40237853]
[1773158762129,1.15727085,87.719,87.681,1.25712582]
[1773158762538,1.15727085,87.719,87.68,22.19587]
[1773158762539,1.15727085,87.719,87.683,1.25712582]
[1773158762736,10.69076632,87.72,87.683,1.25712582]
[1773158763211,11.39886923,87.728,87.685,1.25712582]
[1773158763411,1.15727085,87.727,87.685,1.25712582]
[1773158763832,1.15727085,87.727,87.684,11.4045892]
[1773158763833,1.15727085,87.737,87.691,1.25712582]
[1773158764144,11.39782985,87.736,87.692,1.25712582]
[1773158764312,10.69076632,87.7,87.68,0.1]
[1773158764519,1.15727085,87.709,87.68,0.1]
[1773158764717,1.15727085,87.726,87.681,1.25712582]
[1773158764929,10.69076632,87.72,87.681,1.25712582]
[1773158765117,11.40003876,87.719,87.683,11.40471927]
[1773158765317,11.40003876,87.719,87.684,1.25712582]
[1773158765523,11.39943042,87.724,87.684,1.25712582]
[1773158766025,1.15727085,87.72,87.684,1.25712582]
[1773158766228,1.15727085,87.719,87.684,1.25712582]
[1773158766744,1.15727085,87.709,87.68,0.1]
[1773158767437,11.4014685,87.708,87.68,1.35712582]
[1773158767638,11.39911559,87.727,87.691,1.25712582]
[1773158768527,1.42458259,87.745,87.701,1.25712582]
[1773158768728,11.39623905,87.749,87.711,1.25712582]
[1773158768924,10.69076632,87.76,87.721,1.25712582]
[1773158769128,11.39393386,87.766,87.731,1.25712582]
[1773158769325,1.15727085,87.765,87.73,10.69076632]
[1773158769638,10.69076632,87.76,87.721,1.25712582]
[1773158769865,10.69076632,87.76,87.725,1.25712582]
[1773158770041,11.84803717,87.78,87.731,1.25712582]
[1773158770337,1.15727085,87.769,87.721,1.25712582]
[1773158770539,1.15727085,87.759,87.721,1.25712582]
[1773158771733,1.15727085,87.759,87.72,10.69076632]
[1773158771734,11.39497253,87.758,87.723,1.25712582]
[1773158772245,1.15727085,87.77,87.731,1.25712582]
[1773158772426,11.39372696,87.768,87.731,1.25712582]
[1773158772621,11.39372696,87.768,87.74,10.69076632]
[1773158772828,11.39372696,87.768,87.731,1.25712582]
[1773158773042,1.15727085,87.767,87.731,1.25712582]
[1773158773237,1.15727085,87.749,87.712,1.25712582]
[1773158773539,1.15727085,87.749,87.653,45.63403561]
[1773158773540,1.15727085,87.729,87.694,11.40321241]
[1773158773724,10.69076632,87.72,87.693,1.25712582]
[1773158774136,1.15727085,87.727,87.694,12.66041452]
[1773158774529,1.15727085,87.727,87.694,1.25712582]
[1773158775649,11.3991291,87.726,87.694,1.25712582]
[1773158776028,1.15727085,87.738,87.695,1.25712582]
[1773158776232,1.15727085,87.753,87.701,1.25712582]
[1773158776433,1.15727085,87.739,87.703,1.25712582]
[1773158777230,11.39536208,87.755,87.711,1.25712582]
[1773158777431,11.39536208,87.755,87.721,1.25712582]
[1773158777736,1.15727085,87.758,87.722,11.39964889]
[1773158778143,1.15727085,87.758,87.721,1.25712582]
[1773158778342,1.15727085,87.758,87.722,1.25712582]
[1773158779536,10.69076632,87.77,87.73,10.69076632]
[1773158779732,12.56532019,87.779,87.743,1.21771865]
[1773158780364,10.69076632,87.77,87.743,1.21771865]
[1773158780552,1.17307376,87.769,87.732,1.21771865]
[1773158780748,1.17307376,87.769,87.722,11.39964889]
[1773158780963,1.17307376,87.759,87.723,1.21771865]
[1773158781256,39.87286252,87.779,87.7,1.21771865]
[1773158781257,1.17307376,87.739,87.7,1.21771865]
[1773158781437,1.17307376,87.739,87.703,11.40204315]
[1773158781627,10.69076632,87.75,87.704,1.21771865]
[1773158781827,10.69076632,87.76,87.713,1.21771865]
[1773158782129,11.39406369,87.765,87.731,1.21771865]
[1773158782333,11.39406369,87.765,87.733,1.21771865]
[1773158782854,11.86384008,87.78,87.741,1.21771865]
[1773158783241,1.17307376,87.778,87.741,1.21771865]
[1773158783443,10.69076632,87.77,87.741,1.21771865]
[1773158783847,11.39354441,87.769,87.741,12.61487886]
[1773158784162,39.87740545,87.769,87.741,1.21771865]
[1773158784333,39.87740545,87.769,87.72,10.69076632]
[1773158784334,1.17307376,87.759,87.72,10.69076632]
[1773158784650,41.05047921,87.769,87.731,1.21771865]
[1773158784843,1.17307376,87.768,87.731,1.21771865]
[1773158786145,41.05138792,87.767,87.731,1.21771865]
[1773158786346,41.05138792,87.767,87.733,1.21771865]
[1773158787151,12.5668778,87.767,87.733,1.21771865]
[1773158787355,1.17307376,87.759,87.721,1.21771865]
[1773158788855,11.39497253,87.758,87.723,1.21771865]
[1773158789155,1.17307376,87.757,87.72,10.69076632]
[1773158789353,1.17307376,87.757,87.713,12.61853722]
[1773158789554,1.17307376,87.757,87.72,10.69076632]
[1773158789755,11.39497253,87.758,87.73,11.90848497]
[1773158789960,11.39497253,87.758,87.73,1.21771865]
[1773158790961,39.88240387,87.758,87.73,1.21771865]
[1773158791369,11.39497253,87.758,87.73,1.21771865]
[1773158791571,11.39354441,87.769,87.732,1.21771865]
[1773158791746,11.39354441,87.769,87.741,1.21771865]
[1773158792452,11.39304638,87.773,87.741,1.21771865]
[1773158792869,1.17307376,87.787,87.743,1.21771865]
[1773158794366,1.17307376,87.779,87.745,1.21771865]
[1773158794552,10.69076632,87.77,87.729,1.21771865]
[1773158794747,10.69076632,87.77,87.728,11.3987467]
[1773158794748,1.17307376,87.769,87.731,1.21771865]
[1773158795059,1.17307376,87.769,87.728,11.3987467]
[1773158795060,10.69076632,87.78,87.741,1.21771865]
[1773158795261,1.17307376,87.779,87.741,1.21771865]
[1773158796266,11.39237622,87.778,87.743,1.21771865]
[1773158796964,11.39120826,87.787,87.76,11.90848497]
[1773158797167,11.39120826,87.787,87.74,1.21771865]
[1773158797168,1.17307376,87.779,87.74,1.21771865]
[1773158797369,1.17307376,87.779,87.741,1.21771865]
[1773158797570,1.17307376,87.779,87.751,1.21771865]
[1773158797753,11.39120826,87.787,87.751,1.21771865]
[1773158798249,1.17307376,87.786,87.753,1.21771865]
[1773158798454,1.17307376,87.784,87.754,11.39549194]
[1773158798662,11.39146779,87.785,87.735,1.21771865]
[1773158798663,1.17307376,87.779,87.735,1.21771865]
[1773158798862,1.17307376,87.779,87.74,10.69076632]
[1773158799164,1.17307376,87.779,87.741,1.21771865]
[1773158799763,11.39146779,87.785,87.751,1.21771865]
[1773158799970,1.17307376,87.784,87.751,1.21771865]
[1773158800471,1.17307376,87.779,87.747,11.39638637]
[1773158800668,1.17307376,87.779,87.75,11.90848497]
[1773158801060,1.17307376,87.779,87.751,1.21771865]
[1773158801261,11.39172732,87.783,87.751,1.21771865]
[1773158801576,11.39093747,87.79,87.761,1.21771865]
[1773158802756,11.39093747,87.79,87.76,10.69076632]
[1773158802757,11.39093747,87.79,87.762,11.39445318]
[1773158802977,11.39093747,87.79,87.762,12.61217183]
[1773158803161,11.39093747,87.79,87.763,1.21771865]
[1773158803469,11.39093747,87.79,87.77,10.12104711]
[1773158803677,11.38978108,87.798,87.78,10.69076632]
[1773158803873,11.38978108,87.798,87.77,10.69076632]
[1773158804074,1.17307376,87.779,87.741,1.21771865]
[1773158804270,1.17307376,87.779,87.743,1.21771865]
[1773158804869,10.69076632,87.78,87.743,1.21771865]
[1773158804870,1.17307376,87.777,87.743,1.21771865]
[1773158805465,1.17307376,87.777,87.745,1.21771865]
[1773158805754,1.17307376,87.777,87.74,10.69076632]
[1773158806169,1.17307376,87.777,87.735,11.39786385]
[1773158806376,1.17307376,87.777,87.74,10.69076632]
[1773158806974,1.21441837,87.775,87.742,1.18538888]
[1773158807177,12.6045232,87.796,87.761,1.18538888]
[1773158807479,12.6045232,87.796,87.741,68.38308201]
[1773158807480,1.21441837,87.779,87.746,1.18538888]
[1773158808562,1.21441837,87.777,87.747,11.39640101]
[1773158809076,1.21441837,87.798,87.771,1.18538888]
[1773158809258,11.38915561,87.803,87.771,1.18538888]
[1773158810082,20.33136165,87.799,87.771,1.18538888]
[1773158810268,8.94158301,87.799,87.78,10.67850318]
[1773158810777,8.94158301,87.799,87.782,1.27039975]
[1773158812274,0.42110814,87.799,87.79,10.67850318]
[1773158812576,11.38778889,87.814,87.79,12.66112107]
[1773158812762,11.38778889,87.814,87.79,23.33962425]
[1773158813074,1.22186764,87.817,87.79,23.33962425]
[1773158813282,11.38744647,87.816,87.79,23.33962425]
[1773158813480,11.38744647,87.816,87.79,12.66112107]
[1773158813783,1.22186764,87.815,87.781,1.27039975]
[1773158814081,1.22186764,87.815,87.79,10.67850318]
[1773158814291,11.38602024,87.827,87.791,1.27039975]
[1773158814580,1.22186764,87.826,87.78,10.67850318]
[1773158814764,1.22186764,87.819,87.781,1.27039975]
[1773158815775,1.22186764,87.817,87.781,12.66238662]
[1773158816176,10.67850318,87.81,87.78,11.392081]
[1773158816378,1.22186764,87.809,87.78,12.66248075]
[1773158816562,1.22186764,87.809,87.78,23.34098393]
[1773158817266,11.38718713,87.818,87.791,1.27039975]
[1773158818281,1.22186764,87.817,87.792,12.66095925]
[1773158818477,11.38718713,87.818,87.793,1.27039975]
[1773158819476,11.38627953,87.825,87.793,1.27039975]
[1773158819665,1.22186764,87.824,87.794,11.39030002]
[1773158819976,1.22186764,87.824,87.793,1.27039975]
[1773158820991,1.22186764,87.824,87.794,11.39030002]
[1773158821281,1.22186764,87.833,87.801,1.27039975]
[1773158821579,11.38472397,87.837,87.804,1.27039975]
[1773158821783,11.38472397,87.837,87.781,0.57044855]
[1773158821784,1.22186764,87.809,87.771,1.27039975]
[1773158822289,1.22186764,87.789,87.75,11.94890293]
[1773158822475,1.22186764,87.779,87.753,11.39557963]
[1773158823075,10.67850318,87.79,87.754,1.27039975]
[1773158823494,1.22186764,87.789,87.754,1.27039975]
[1773158823786,11.39094875,87.789,87.756,1.27039975]
[1773158824476,1.22186764,87.788,87.756,1.27039975]
[1773158825491,1.22186764,87.797,87.761,1.27039975]
[1773158825668,12.61190818,87.796,87.764,1.27039975]
[1773158826376,11.39004054,87.796,87.764,1.27039975]
[1773158827083,11.39004054,87.796,87.771,1.27039975]
[1773158827477,12.61190818,87.796,87.763,11.39432334]
[1773158827688,12.61190818,87.796,87.764,1.27039975]
[1773158828293,11.39004054,87.796,87.764,1.27039975]
[1773158828684,11.38943598,87.801,87.77,10.67850318]
[1773158828992,10.67850318,87.83,87.791,1.27039975]
[1773158829290,11.38576096,87.829,87.801,1.27039975]
[1773158829866,11.3849832,87.835,87.801,1.27039975]
[1773158830172,1.22186764,87.834,87.803,1.27039975]
[1773158831392,79.57766589,87.93,87.811,1.27039975]
[1773158831393,11.38448841,87.839,87.811,1.27039975]
[1773158831780,6.51957324,87.841,87.821,1.27039975]
[1773158831978,10.87850318,87.86,87.832,0.10537688]
[1773158831979,0.2,87.86,87.832,0.10537688]
[1773158832279,11.38187322,87.859,87.84,10.67850318]
[1773158832679,0.09231653,87.86,87.841,0.10768456]
[1773158833190,0.09231653,87.86,87.85,10.67850318]
[1773158833494,11.37943461,87.878,87.85,10.67850318]
[1773158833672,11.37943461,87.878,87.831,39.84925595]
[1773158833990,1.2882384,87.868,87.8,39.86332574]
[1773158834192,1.2882384,87.868,87.83,10.67850318]
[1773158834372,1.2882384,87.868,87.801,0.56968329]
[1773158834373,1.2882384,87.868,87.803,3.69383402]
[1773158834575,1.2882384,87.868,87.83,10.67850318]
[1773158834776,1.2882384,87.859,87.804,0.56961196]
[1773158834982,1.2882384,87.859,87.82,10.67850318]
[1773158835183,1.2882384,87.859,87.83,10.67850318]
[1773158835689,1.2882384,87.859,87.82,10.67850318]
[1773158836073,10.67850318,87.86,87.821,11.38679814]
[1773158836074,1.2882384,87.857,87.821,11.38679814]
[1773158836489,1.2882384,87.857,87.82,10.67850318]
[1773158836682,1.2882384,87.839,87.794,11.3901769]
[1773158836884,1.2882384,87.839,87.758,4.82477569]
[1773158836885,1.2882384,87.809,87.76,11.39471285]
[1773158837086,1.2882384,87.809,87.77,10.67850318]
[1773158838987,1.2882384,87.807,87.771,11.39328479]
[1773158839393,1.2882384,87.837,87.8,10.67850318]
[1773158840192,11.38407595,87.842,87.82,10.67850318]
[1773158840417,11.38350235,87.847,87.82,10.67850318]
[1773158840597,1.2882384,87.846,87.81,10.67850318]
[1773158840981,11.38239144,87.855,87.82,10.67850318]
[1773158841196,1.2882384,87.868,87.83,10.67850318]
[1773158841394,1.2882384,87.867,87.83,10.67850318]
[1773158842388,1.2882384,87.867,87.84,10.67850318]
[1773158842598,1.2882384,87.867,87.83,10.67850318]
[1773158843809,1.2882384,87.859,87.82,10.67850318]
[1773158843978,1.2882384,87.859,87.83,10.67850318]
[1773158845486,1.2882384,87.849,87.81,10.67850318]
[1773158845687,1.2882384,87.847,87.81,10.67850318]
[1773158846595,1.2882384,87.839,87.803,11.38903694]
[1773158846803,1.2882384,87.829,87.793,11.39030105]
[1773158846988,1.2882384,87.829,87.8,10.67850318]
[1773158847191,1.2882384,87.829,87.81,10.67850318]
[1773158847392,1.2882384,87.829,87.8,10.67850318]
[1773158847797,1.2882384,87.827,87.8,10.67850318]
[1773158849092,1.2882384,87.827,87.79,10.67850318]
[1773158849298,1.2882384,87.819,87.78,10.67850318]
[1773158849785,1.2882384,87.817,87.781,11.39198687]
[1773158849990,1.2882384,87.817,87.79,10.67850318]
[1773158850809,1.2882384,87.817,87.781,11.39198687]
[1773158851590,1.2882384,87.817,87.78,10.67850318]
[1773158852012,1.2882384,87.815,87.78,10.67850318]
[1773158853012,1.2882384,87.809,87.776,11.39255779]
[1773158853302,1.2882384,87.809,87.77,11.24921761]
[1773158853303,1.2882384,87.809,87.771,11.39316147]
[1773158853505,1.2882384,87.799,87.76,10.67850318]
[1773158854413,1.2882384,87.797,87.77,10.67850318]
[1773158854913,1.2882384,87.816,87.79,10.67850318]
[1773158855308,1.2882384,87.816,87.78,10.67850318]
[1773158856415,1.2882384,87.814,87.781,11.39198687]
[1773158856799,1.2882384,87.814,87.77,10.67850318]
[1773158857002,1.2882384,87.814,87.78,10.67850318]
[1773158857197,1.2882384,87.824,87.8,10.67850318]
[1773158857396,1.2882384,87.824,87.81,10.67850318]
[1773158857607,1.2882384,87.824,87.8,10.67850318]
[1773158858009,1.2882384,87.824,87.79,10.67850318]
[1773158858207,1.2882384,87.824,87.8,10.67850318]
[1773158858812,1.2882384,87.822,87.8,10.67850318]
[1773158860113,1.2882384,87.819,87.77,10.67850318]
[1773158860301,1.2882384,87.819,87.771,11.39328479]
[1773158860620,10.67850318,87.82,87.771,11.39328479]
[1773158860621,1.2882384,87.816,87.771,11.39328479]
[1773158861314,1.2882384,87.816,87.78,10.67850318]
[1773158862414,10.67850318,87.81,87.77,22.07179979]
[1773158862719,1.2882384,87.809,87.77,22.07179979]
[1773158863017,1.2882384,87.807,87.78,10.67850318]
[1773158863418,1.2882384,87.814,87.79,10.67850318]
[1773158864002,1.2882384,87.822,87.79,10.67850318]
[1773158864909,39.85152459,87.826,87.77,40.44775525]
[1773158864910,1.2882384,87.82,87.78,10.67850318]
[1773158865215,1.2882384,87.819,87.78,10.67850318]
[1773158865516,1.2882384,87.819,87.77,29.05445864]
[1773158865715,1.2882384,87.819,87.77,10.67850318]
[1773158866315,1.2882384,87.819,87.77,22.07184848]
[1773158866522,1.2882384,87.799,87.76,10.67850318]
[1773158866907,1.2882384,87.799,87.761,11.39458301]
[1773158867108,1.2882384,87.797,87.761,11.39458301]
[1773158867308,1.2882384,87.789,87.75,22.07443948]
[1773158867509,1.2882384,87.789,87.746,11.3964878]
[1773158867710,1.2882384,87.789,87.75,10.67850318]
[1773158868814,1.2882384,87.779,87.742,11.39699777]
[1773158869209,1.2882384,87.777,87.742,11.39699777]
[1773158869724,1.2882384,87.777,87.75,10.67850318]
[1773158869925,1.2882384,87.786,87.76,10.67850318]
[1773158870314,1.2882384,87.786,87.77,10.67850318]
[1773158870518,1.2882384,87.794,87.77,10.67850318]
[1773158871329,1.2882384,87.794,87.771,11.39328479]
[1773158871627,1.2882384,87.794,87.771,39.87649678]
[1773158872130,1.2882384,87.794,87.771,11.39328479]
[1773158872924,1.2882384,87.794,87.78,10.67845239]
[1773158873115,1.2882384,87.794,87.771,11.39328479]
[1773158873721,1.2882384,87.804,87.78,10.67845239]
[1773158874119,1.2882384,87.804,87.771,39.87649678]
[1773158875129,11.38913248,87.803,87.771,39.87649678]
[1773158875330,1.2882384,87.802,87.771,39.87649678]
[1773158876531,1.2882384,87.811,87.78,10.67845239]
[1773158876834,1.2882384,87.827,87.79,10.67845239]
[1773158877333,1.2882384,87.825,87.791,11.39068925]
[1773158878742,1.2882384,87.825,87.791,39.86741237]
[1773158879428,1.2882384,87.823,87.791,39.86741237]
[1773158880026,1.2882384,87.823,87.791,11.39068925]
[1773158880422,1.2882384,87.819,87.791,11.39068925]
[1773158880619,1.2882384,87.819,87.78,10.67845239]
[1773158880828,1.2882384,87.799,87.76,11.39471285]
[1773158881024,1.2882384,87.799,87.76,22.07316524]
[1773158881342,1.2882384,87.799,87.78,10.67845239]
[1773158881640,1.2882384,87.799,87.781,11.39198687]
[1773158882038,1.2882384,87.818,87.781,11.39198687]
[1773158882235,1.2882384,87.818,87.781,39.87195406]
[1773158882436,1.2882384,87.818,87.781,11.39198687]
[1773158882952,1.2882384,87.818,87.79,10.67845239]
[1773158883242,10.67845239,87.85,87.81,10.67845239]
[1773158883443,11.38316884,87.849,87.811,11.38809488]
[1773158883627,10.67845239,87.84,87.794,28.47543421]
[1773158883829,10.67845239,87.83,87.794,28.47543421]
[1773158884032,10.67845239,87.83,87.792,11.3905595]
[1773158884921,10.67845239,87.84,87.8,10.67845239]
[1773158885125,0.6441192,87.839,87.8,10.67845239]
[1773158885325,0.6441192,87.829,87.792,39.86695826]
[1773158885525,0.6441192,87.827,87.792,39.86695826]
[1773158885737,0.6441192,87.827,87.8,10.67845239]
[1773158886533,1.42278273,87.856,87.792,39.86695826]
[1773158886534,0.6441192,87.849,87.82,10.67845239]
[1773158886733,0.6441192,87.849,87.83,10.67845239]
[1773158886923,0.6441192,87.849,87.82,10.67845239]
[1773158887866,7.04065578,87.869,87.84,10.67845239]
[1773158888050,45.48728747,87.937,87.86,10.67845239]
[1773158888051,11.3766937,87.899,87.86,10.67845239]
[1773158888727,39.81842796,87.899,87.87,10.67845239]
[1773158888929,10.67845239,87.89,87.85,10.67845239]
[1773158889346,39.81842796,87.899,87.86,10.67845239]
[1773158889526,11.3766937,87.899,87.87,10.67845239]
[1773158889729,0.49481139,87.899,87.86,10.67845239]
[1773158891350,0.49481139,87.899,87.853,0.3558808]
[1773158891552,0.49481139,87.899,87.86,10.67845239]
[1773158891941,0.49481139,87.897,87.861,11.38161414]
[1773158892129,0.49481139,87.897,87.861,39.83564949]
[1773158892844,0.49481139,87.897,87.87,10.67845239]
[1773158893045,11.37539956,87.909,87.87,10.67845239]
[1773158893238,39.81389846,87.909,87.87,10.67845239]
[1773158893546,0.2,87.91,87.87,11.13490989]
[1773158893748,0.2,87.91,87.88,10.67845239]
[1773158893948,10.87845239,87.91,87.871,11.38031887]
[1773158894939,0.49481139,87.909,87.88,10.67845239]
[1773158896053,0.49481139,87.907,87.88,10.67845239]
[1773158896745,0.49481139,87.907,87.861,0.4564575]
[1773158896945,0.49481139,87.907,87.871,0.4564575]
[1773158897144,0.49481139,87.907,87.88,10.67845239]
[1773158897345,0.49481139,87.907,87.87,10.67845239]
[1773158897649,0.49481139,87.899,87.87,10.67845239]
[1773158898152,11.37682313,87.898,87.87,22.0588209]
[1773158898351,0.49481139,87.897,87.87,22.0588209]
[1773158898659,28.4388224,87.908,87.87,22.0588209]
[1773158898660,11.37633859,87.902,87.88,10.67845239]
[1773158899233,0.47222473,87.901,87.861,0.4875899]
[1773158899530,0.47222473,87.899,87.86,10.67845239]
[1773158900238,10.67845239,87.9,87.86,10.67845239]
[1773158900239,0.47222473,87.897,87.86,10.67845239]
[1773158900439,0.47222473,87.889,87.846,0.56833508]
[1773158900651,0.47222473,87.879,87.851,0.4875899]
[1773158900839,0.47222473,87.888,87.851,0.4875899]
[1773158901155,0.47222473,87.888,87.86,10.67845239]
[1773158901733,0.2,87.91,87.881,0.4875899]
[1773158902649,0.2,87.91,87.89,10.67845239]
[1773158903051,0.2,87.91,87.9,10.67845239]
[1773158903250,0.2,87.91,87.891,0.4875899]
[1773158903454,0.2,87.91,87.9,10.67845239]
[1773158904038,0.2,87.91,87.891,0.4875899]
[1773158904350,0.2,87.91,87.9,10.67845239]
[1773158904558,0.2,87.91,87.891,0.4875899]
[1773158904854,0.2,87.91,87.891,11.37772923]
[1773158905242,11.37539956,87.909,87.89,10.67845239]
[1773158905442,0.47222473,87.908,87.871,1.0551479]
[1773158905642,0.47222473,87.908,87.875,11.37969754]
[1773158905943,0.47222473,87.908,87.89,10.67845239]
[1773158906353,0.47222473,87.908,87.88,10.67845239]
[1773158907056,0.47222473,87.906,87.871,0.4875899]
[1773158907255,0.47222473,87.906,87.88,10.67845239]
[1773158907441,11.37565836,87.907,87.89,10.67845239]
[1773158908768,11.37565836,87.907,87.885,0.4875899]
[1773158909149,11.37565836,87.907,87.89,10.67845239]
[1773158909367,11.37565836,87.907,87.842,45.53602645]
[1773158909368,0.47222473,87.906,87.88,10.67845239]
[1773158910774,11.37565836,87.907,87.858,0.56782343]
[1773158910775,11.37565836,87.907,87.89,10.67845239]
[1773158911852,0.2,87.91,87.9,10.67845239]
[1773158912263,11.57404111,87.92,87.901,0.4875899]
[1773158912967,11.57404111,87.92,87.9,10.67845239]
[1773158914472,0.2,87.92,87.91,10.67845239]
[1773158914672,6.45883324,87.927,87.911,0.4875899]
[1773158914973,11.57150515,87.94,87.92,10.67845239]
[1773158914974,0.2,87.94,87.92,10.67845239]
[1773158915178,0.2,87.94,87.93,10.67845239]
[1773158915508,0.5,87.954,87.93,10.67845239]
[1773158915646,0.5,87.98,87.94,10.67845239]
[1773158915844,0.5,87.997,87.97,10.67845239]
[1773158916048,0.2,88.0,87.98,10.67845239]
[1773158916272,0.5,87.997,87.97,10.67845239]
[1773158916569,0.5,87.997,87.922,4.82477569]
[1773158916570,0.5,87.997,87.96,10.67845239]
[1773158916753,0.5,87.997,87.922,4.82477569]
[1773158916754,0.5,87.997,87.97,10.67845239]
[1773158917155,39.77363121,87.998,87.98,10.67845239]
[1773158917156,11.36389463,87.998,87.98,10.67845239]
[1773158917467,0.5,88.02,87.99,10.67845239]
[1773158917858,0.5,88.02,87.98,10.67845239]
[1773158917859,0.5,88.019,87.98,10.67845239]
[1773158918272,0.5,88.019,87.97,10.67845239]
[1773158918665,0.5,88.019,87.938,8.51860971]
[1773158918666,0.5,88.019,87.98,10.67845239]
[1773158918868,0.5,88.017,87.98,10.67845239]
[1773158919274,0.5,88.017,87.99,10.67845239]
[1773158919775,0.5,88.017,87.98,10.67845239]
[1773158919988,0.5,87.989,87.94,10.67845239]
[1773158920156,0.5,87.969,87.925,17.39573494]
[1773158920358,0.5,87.959,87.925,17.39573494]
[1773158920962,0.5,87.939,87.9,10.67845239]
[1773158921159,85.26796878,87.958,87.89,10.67845239]
[1773158921160,0.5,87.929,87.89,10.67845239]
[1773158921381,0.5,87.929,87.851,0.56740873]
[1773158921570,0.5,87.919,87.89,10.67845239]
[1773158921775,0.5,87.939,87.89,10.67845239]
[1773158922088,10.67845239,87.94,87.89,10.67845239]
[1773158922089,0.5,87.937,87.89,10.67845239]
[1773158922262,0.5,87.929,87.89,10.67845239]
[1773158922659,11.37294149,87.928,87.89,10.67845239]
[1773158922864,11.37294149,87.928,87.852,113.8278013]
[1773158922865,0.5,87.937,87.91,10.67845239]
[1773158923258,0.5,87.936,87.9,10.67845239]
[1773158925183,0.5,87.934,87.9,10.67845239]
[1773158926466,39.80212656,87.935,87.901,11.37643485]
[1773158926665,0.5,87.934,87.901,11.37643485]
[1773158928684,0.5,87.932,87.901,11.37643485]
[1773158929465,1.42114897,87.957,87.901,11.37643485]
[1773158929466,0.5,87.954,87.92,10.67845239]
[1773158929782,28.42334601,87.956,87.92,10.67845239]
[1773158930081,11.36945028,87.955,87.92,10.67845239]
[1773158930584,10.67845239,87.95,87.911,0.46569223]
[1773158930765,10.67845239,87.94,87.902,0.56628983]
[1773158930967,10.67845239,87.93,87.891,11.84334334]
[1773158931166,10.67845239,87.94,87.891,11.84334334]
[1773158931383,10.67845239,87.94,87.9,10.67845239]
[1773158931877,0.48560505,87.939,87.9,10.67845239]
[1773158932590,0.48560505,87.929,87.881,0.46569223]
[1773158932771,0.48560505,87.919,87.88,10.67845239]
[1773158933084,0.48560505,87.909,87.871,0.46569223]
[1773158933785,0.48560505,87.909,87.873,11.37993894]
[1773158933994,0.48560505,87.927,87.9,10.65366968]
[1773158934287,0.48560505,87.927,87.89,10.65366968]
[1773158934785,11.37320019,87.926,87.89,11.37785868]
[1773158934988,0.48560505,87.925,87.89,22.03152836]
[1773158935168,0.48560505,87.919,87.874,11.37993035]
[1773158935369,0.48560505,87.919,87.875,0.46569223]
[1773158935578,0.48560505,87.919,87.88,11.11936191]
[1773158935766,0.48560505,87.919,87.88,10.65366968]
[1773158936270,0.48560505,87.919,87.881,0.46569223]
[1773158936987,0.48560505,87.917,87.883,0.46569223]
[1773158938081,11.37307084,87.927,87.9,10.65366968]
[1773158938286,11.37307084,87.927,87.891,0.46569223]
[1773158938481,0.48560505,87.926,87.891,0.46569223]
[1773158938673,0.48560505,87.919,87.882,11.37889442]
[1773158938875,11.37539956,87.909,87.88,10.65366968]
[1773158940107,39.81389846,87.909,87.88,10.65366968]
[1773158940276,11.37539956,87.909,87.88,10.65366968]
[1773158940797,39.81389846,87.909,87.88,10.65366968]
[1773158941185,0.48560505,87.908,87.87,10.65366968]
[1773158941397,0.48560505,87.908,87.87,22.03404255]
[1773158942397,0.48560505,87.908,87.88,10.65366968]
[1773158943180,11.37539956,87.909,87.881,11.84471613]
[1773158944090,11.37539956,87.909,87.881,0.46569223]
[1773158944289,10.65366968,87.9,87.861,0.46569223]
[1773158944482,0.48560505,87.899,87.861,0.46569223]
[1773158944879,0.48560505,87.889,87.851,0.46569223]
[1773158945100,10.65366968,87.89,87.852,11.38278013]
[1773158945101,0.48560505,87.887,87.852,11.38278013]
[1773158946596,11.37756704,87.893,87.861,0.46569223]